lending/lending_fUSD_20240507
["ID","MTS","AMOUNT","RATE_DAILY","PERIOD"]
[326562821,1715109084449,-1219.46,0.00020821,2]
[326562822,1715109084459,-500.0,0.00020821,2]
[326562823,1715109084470,-500.0,0.00020821,2]
[326562824,1715109084480,-500.0,0.00020821,2]
[326562825,1715109084489,-1074.92,0.00020821,2]
[326562826,1715109084499,-767.65,0.00020821,2]
[326562827,1715109084508,-500.0,0.00020821,2]
[326562828,1715109084518,-500.0,0.00020821,2]
[326562829,1715109084527,-3466.46,0.00020821,2]
[326562830,1715109084537,-1717.75,0.00020821,2]
[326562831,1715109084547,-500.0,0.00020821,2]
[326562832,1715109084557,-500.0,0.00020821,2]
[326562833,1715109084567,-1168.98,0.00020821,2]
[326562834,1715109084576,-500.0,0.00020821,2]
[326562835,1715109084586,-946.47,0.00020821,2]
[326562836,1715109084597,-3939.72,0.00020821,2]
[326562837,1715109084610,-622.4,0.00020821,2]
[326562838,1715109084620,-9068.98,0.00020821,2]
[326562839,1715109084631,-2099.47,0.00020821,2]
[326562840,1715109084641,-660.56,0.00020821,2]
[326562841,1715109084651,-975.09,0.00020821,2]
[326562842,1715109084661,-7823.11,0.00020821,2]
[326562843,1715109084671,-3638.35,0.00020821,2]
[326562844,1715109084682,-2517.85,0.00020821,2]
[326562845,1715109084692,-3443.28,0.00020821,2]
[326562846,1715109084703,-500.0,0.00020821,2]
[326562847,1715109084713,-500.0,0.00020821,2]
[326562848,1715109084724,-500.0,0.00020821,2]
[326562849,1715109084734,-626.56,0.00020821,2]
[326562850,1715109084750,-500.0,0.00020821,2]
[326562851,1715109084760,-500.0,0.00020821,2]
[326562852,1715109084771,-500.0,0.00020821,2]
[326562853,1715109084781,-862.97,0.00020821,2]
[326562854,1715109084791,-1652.38,0.00020821,2]
[326562855,1715109084803,-2159.29,0.00020821,2]
[326562856,1715109084814,-669.45,0.00020821,2]
[326562857,1715109084824,-500.0,0.00020821,2]
[326562858,1715109084834,-500.0,0.00020821,2]
[326562859,1715109084845,-500.0,0.00020821,2]
[326562860,1715109084856,-544.82,0.00020821,2]
[326562861,1715109084866,-541.77,0.00020821,2]
[326562862,1715109084878,-500.0,0.00020821,2]
[326562863,1715109084889,-558.7,0.00020821,2]
[326562864,1715109084900,-626.2,0.00020821,2]
[326562865,1715109084911,-848.65,0.00020821,2]
[326562866,1715109084921,-1005.88,0.00020821,2]
[326562867,1715109084930,-13278.13,0.00020821,2]
[326562868,1715109084940,-500.0,0.00020821,2]
[326562869,1715109084950,-500.0,0.00020821,2]
[326562870,1715109084962,-500.0,0.00020821,2]
[326562871,1715109084972,-500.0,0.00020821,2]
[326562872,1715109084983,-1307.7,0.00020821,2]
[326562873,1715109084993,-835.03,0.00020821,2]
[326562874,1715109085004,-593.67,0.00020821,2]
[326562875,1715109085014,-783.4,0.00020821,2]
[326562876,1715109085025,-500.0,0.00020821,2]
[326562877,1715109085036,-20174.99,0.00020821,2]
[326562878,1715109085047,-858.71,0.00020821,2]
[326562879,1715109085059,-811.78,0.00020821,2]
[326562880,1715109085068,-2207.78,0.00020821,2]
[326562881,1715109085080,-1098.34,0.00020821,2]
[326562882,1715109085090,-500.0,0.00020821,2]
[326562883,1715109085101,-581.24,0.00020821,2]
[326562884,1715109085111,-775.24,0.00020821,2]
[326562885,1715109085122,-640.04,0.00020821,2]
[326562886,1715109085132,-681.51,0.00020821,2]
[326562887,1715109085143,-500.0,0.00020821,2]
[326562888,1715109085154,-500.0,0.00020821,2]
[326562889,1715109085165,-1322.4,0.00020821,2]
[326562890,1715109085176,-500.0,0.00020821,2]
[326562891,1715109085187,-500.0,0.00020821,2]
[326562892,1715109085197,-1309.95,0.00020821,2]
[326562893,1715109085208,-500.0,0.00020821,2]
[326562894,1715109085218,-500.0,0.00020821,2]
[326562895,1715109085228,-1656.54,0.00020821,2]
[326562896,1715109085239,-913.41,0.00020821,2]
[326562897,1715109085250,-500.0,0.00020821,2]
[326562898,1715109085260,-500.0,0.00020821,2]
[326562899,1715109085272,-2525.7,0.00020821,2]
[326562900,1715109085283,-1016.48,0.00020821,2]
[326562901,1715109085294,-500.0,0.00020821,2]
[326562902,1715109085304,-500.0,0.00020821,2]
[326562903,1715109085316,-590.94,0.00020821,2]
[326562904,1715109085326,-2176.15,0.00020821,2]
[326562905,1715109085336,-1488.9,0.00020821,2]
[326562906,1715109085347,-1089.01,0.00020821,2]
[326562907,1715109085357,-500.0,0.00020821,2]
[326562908,1715109085368,-934.18,0.00020821,2]
[326562909,1715109085379,-500.0,0.00020821,2]
[326562910,1715109085390,-1223.92,0.00020821,2]
[326562911,1715109085400,-500.0,0.00020821,2]
[326562912,1715109085410,-702.3,0.00020821,2]
[326562913,1715109085421,-1123.02,0.00020821,2]
[326562914,1715109085431,-589.37,0.00020821,2]
[326562915,1715109085442,-500.0,0.00020821,2]
[326562916,1715109085452,-500.0,0.00020821,2]
[326562917,1715109085462,-500.0,0.00020821,2]
[326562918,1715109085472,-1456.17,0.00020821,2]
[326562919,1715109085482,-1023.26,0.00020821,2]
[326562920,1715109085493,-1294.89,0.00020821,2]
[326562921,1715109085503,-2029.34,0.00020821,2]
[326562922,1715109085514,-500.0,0.00020821,2]
[326562923,1715109085525,-958.06,0.00020821,2]
[326562924,1715109085536,-238.5277837,0.00020821,2]
[326562925,1715109085546,-3031.7,0.00020821,2]
[326562926,1715109085557,-154.89644299,0.00020821,2]
[326562927,1715109085567,-1797.85,0.00020821,2]
[326562928,1715109085578,-500.0,0.00020821,2]
[326562929,1715109085589,-500.0,0.00020821,2]
[326562930,1715109085600,-500.0,0.00020821,2]
[326562931,1715109085618,-2598.21,0.00020821,2]
[326562932,1715109085629,-2329.42,0.00020821,2]
[326562933,1715109085639,-639.23,0.00020821,2]
[326562934,1715109085649,-1252.65,0.00020821,2]
[326562935,1715109085660,-867.36,0.00020821,2]
[326562936,1715109085670,-500.0,0.00020821,2]
[326562937,1715109085680,-1368.28,0.00020821,2]
[326562938,1715109085692,-1447.62,0.00020821,2]
[326562939,1715109085702,-1495.07,0.00020821,2]
[326562940,1715109085712,-1247.39,0.00020821,2]
[326562941,1715109085723,-2090.62,0.00020821,2]
[326562942,1715109085734,-500.0,0.00020821,2]
[326562943,1715109085744,-609.28,0.00020821,2]
[326562944,1715109085755,-500.0,0.00020821,2]
[326562945,1715109085765,-576.38,0.00020821,2]
[326562946,1715109085776,-4236.16,0.00020821,2]
[326562947,1715109085787,-500.0,0.00020821,2]
[326562948,1715109085800,-1443.45,0.00020821,2]
[326562949,1715109085811,-952.68,0.00020821,2]
[326562950,1715109085821,-500.0,0.00020821,2]
[326562951,1715109085832,-4439.92,0.00020821,2]
[326562952,1715109085843,-525.41,0.00020821,2]
[326562953,1715109085853,-4763.7,0.00020821,2]
[326562954,1715109085863,-690.08,0.00020821,2]
[326562955,1715109085874,-500.0,0.00020821,2]
[326562956,1715109085884,-2899.93,0.00020821,2]
[326562957,1715109085894,-3213.53,0.00020821,2]
[326562958,1715109085904,-1469.01,0.00020821,2]
[326562959,1715109085914,-2058.55,0.00020821,2]
[326562960,1715109085924,-500.0,0.00020821,2]
[326562961,1715109085934,-1807.87,0.00020821,2]
[326562962,1715109085945,-737.92,0.00020821,2]
[326562963,1715109085955,-1387.57,0.00020821,2]
[326562964,1715109085965,-919.82,0.00020821,2]
[326562965,1715109085976,-2336.73,0.00020821,2]
[326562966,1715109085986,-3045.65,0.00020821,2]
[326562967,1715109085995,-1092.73,0.00020821,2]
[326562968,1715109086006,-1691.25,0.00020821,2]
[326562969,1715109086017,-1026.13,0.00020821,2]
[326562970,1715109086028,-543.72,0.00020821,2]
[326562971,1715109086038,-2744.29,0.00020821,2]
[326562972,1715109086049,-1345.09,0.00020821,2]
[326562973,1715109086059,-3663.09,0.00020821,2]
[326562974,1715109086069,-571.79,0.00020821,2]
[326562975,1715109086079,-920.02,0.00020821,2]
[326562976,1715109086248,-563.11,0.000209,2]
[326562977,1715109086275,-1500.0,0.000209,7]
[326562978,1715109086285,-155.09581377,0.00021093,2]
[326562979,1715109086296,-155.0,0.00021093,2]
[326562980,1715109086306,-711.42259671,0.00021093,2]
[326562981,1715109086315,-500.0,0.00021095,2]
[326562982,1715109086326,-500.0,0.00021095,2]
[326562983,1715109086336,-500.0,0.00021095,2]
[326562984,1715109086345,-500.0,0.00021095,2]
[326562985,1715109086355,-616.55,0.00021095,2]
[326562986,1715109086365,-609.92,0.00021095,2]
[326562987,1715109086375,-528.98,0.00021095,2]
[326562988,1715109086385,-637.67,0.00021095,2]
[326562989,1715109086394,-500.0,0.00021095,2]
[326562990,1715109086403,-961.86,0.00021095,2]
[326562991,1715109086414,-500.0,0.00021095,2]
[326562992,1715109086424,-516.31,0.00021095,2]
[326562993,1715109086433,-500.0,0.00021095,2]
[326562994,1715109086443,-500.0,0.00021095,2]
[326562995,1715109086452,-500.0,0.00021095,2]
[326562996,1715109086462,-500.0,0.00021095,2]
[326562997,1715109086472,-500.0,0.00021095,2]
[326562998,1715109086482,-500.0,0.00021095,2]
[326562999,1715109086492,-500.0,0.00021095,2]
[326563000,1715109086501,-500.0,0.00021095,2]
[326563001,1715109086511,-500.0,0.00021095,2]
[326563002,1715109086523,-500.0,0.00021095,2]
[326563003,1715109086533,-500.0,0.00021095,2]
[326563004,1715109086543,-500.0,0.00021095,2]
[326563005,1715109086552,-500.0,0.00021095,2]
[326563006,1715109086562,-500.0,0.00021095,2]
[326563007,1715109086571,-500.0,0.00021095,2]
[326563008,1715109086581,-381.08508097,0.00021095,2]
[326563009,1715109086592,-500.0,0.00021095,2]
[326563010,1715109086601,-500.0,0.00021095,2]
[326563011,1715109086615,-500.0,0.00021095,2]
[326563012,1715109086624,-511.83,0.00021095,2]
[326563013,1715109086633,-640.82,0.00021095,2]
[326563014,1715109086643,-1296.96,0.00021095,2]
[326563015,1715109086654,-1039.89,0.00021095,2]
[326563016,1715109086663,-500.0,0.00021095,2]
[326563017,1715109086673,-1344.86,0.00021095,2]
[326563018,1715109086683,-510.16,0.00021095,2]
[326563019,1715109086696,-545.28418155,0.00021095,2]
[326563020,1715109086706,-500.0,0.00021095,2]
[326563021,1715109086715,-500.0,0.00021095,2]
[326563022,1715109086724,-1140.53,0.00021095,2]
[326563023,1715109086734,-500.0,0.00021095,2]
[326563024,1715109086744,-500.0,0.00021095,2]
[326563025,1715109086754,-548.18,0.00021095,2]
[326563026,1715109086763,-500.0,0.00021095,2]
[326563027,1715109086773,-500.0,0.00021095,2]
[326563028,1715109086783,-500.0,0.00021095,2]
[326563029,1715109086792,-500.0,0.00021095,2]
[326563030,1715109086806,-909.34,0.00021095,2]
[326563031,1715109086817,-587.62,0.00021095,2]
[326563032,1715109086827,-500.0,0.00021095,2]
[326563033,1715109086836,-500.0,0.00021095,2]
[326563034,1715109086846,-737.75,0.00021095,2]
[326563035,1715109086855,-500.0,0.00021095,2]
[326563036,1715109086865,-500.0,0.00021095,2]
[326563037,1715109086875,-500.0,0.00021095,2]
[326563038,1715109086884,-965.36,0.00021095,2]
[326563039,1715109086894,-500.0,0.00021095,2]
[326563040,1715109086903,-500.0,0.00021095,2]
[326563041,1715109086913,-203.54162084,0.00021095,2]
[326563042,1715109086922,-500.0,0.00021095,2]
[326563043,1715109086932,-500.0,0.00021095,2]
[326563044,1715109086942,-772.42,0.00021095,2]
[326563045,1715109086951,-1277.92,0.00021095,2]
[326563046,1715109086961,-500.0,0.00021095,2]
[326563047,1715109086971,-500.0,0.00021095,2]
[326563048,1715109086980,-854.42,0.00021095,2]
[326563049,1715109086990,-634.37,0.00021095,2]
[326563050,1715109087005,-518.82,0.00021095,2]
[326563051,1715109087015,-834.2,0.00021095,2]
[326563052,1715109087027,-500.0,0.00021095,2]
[326563053,1715109087037,-500.0,0.00021095,2]
[326563054,1715109087047,-559.02,0.00021095,2]
[326563055,1715109087057,-500.0,0.00021095,2]
[326563056,1715109087067,-1295.25,0.00021095,2]
[326563057,1715109087078,-1379.17,0.00021095,2]
[326563058,1715109087088,-500.0,0.00021095,2]
[326563059,1715109087098,-500.0,0.00021095,2]
[326563060,1715109087108,-756.88,0.00021095,2]
[326563061,1715109087119,-1051.91,0.00021095,2]
[326563062,1715109087129,-605.72,0.00021095,2]
[326563063,1715109087139,-500.0,0.00021095,2]
[326563064,1715109087149,-500.0,0.00021095,2]
[326563065,1715109087159,-1384.39,0.00021095,2]
[326563066,1715109087170,-500.0,0.00021095,2]
[326563067,1715109087180,-830.22,0.00021095,2]
[326563068,1715109087190,-500.0,0.00021095,2]
[326563069,1715109087201,-500.0,0.00021095,2]
[326563070,1715109087211,-504.54,0.00021095,2]
[326563071,1715109087221,-675.32,0.00021095,2]
[326563072,1715109087232,-849.26,0.00021095,2]
[326563073,1715109087242,-964.69,0.00021095,2]
[326563074,1715109087252,-500.0,0.00021095,2]
[326563075,1715109087263,-775.4,0.00021095,2]
[326563076,1715109087274,-500.0,0.00021095,2]
[326563077,1715109087284,-642.62,0.00021095,2]
[326563078,1715109087293,-500.0,0.00021095,2]
[326563079,1715109087303,-1511.31,0.00021095,2]
[326563080,1715109087313,-500.0,0.00021095,2]
[326563081,1715109087323,-777.92,0.00021095,2]
[326563082,1715109087333,-1094.98,0.00021095,2]
[326563083,1715109087342,-751.54,0.00021095,2]
[326563084,1715109087352,-500.0,0.00021095,2]
[326563085,1715109087362,-500.0,0.00021095,2]
[326563086,1715109087372,-529.2,0.00021095,2]
[326563087,1715109087382,-824.9,0.00021095,2]
[326563088,1715109087392,-500.0,0.00021095,2]
[326563089,1715109087402,-500.0,0.00021095,2]
[326563090,1715109087412,-500.0,0.00021095,2]
[326563091,1715109087422,-740.96,0.00021095,2]
[326563092,1715109087432,-1194.81,0.00021095,2]
[326563093,1715109087442,-500.0,0.00021095,2]
[326563094,1715109087451,-500.0,0.00021095,2]
[326563095,1715109087461,-665.48,0.00021095,2]
[326563096,1715109087471,-500.0,0.00021095,2]
[326563097,1715109087481,-712.08,0.00021095,2]
[326563098,1715109087492,-500.0,0.00021095,2]
[326563099,1715109087501,-1308.28,0.00021095,2]
[326563100,1715109087511,-500.0,0.00021095,2]
[326563101,1715109087521,-531.86,0.00021095,2]
[326563102,1715109087531,-661.12,0.00021095,2]
[326563103,1715109087540,-500.0,0.00021095,2]
[326563104,1715109087551,-288.0087298,0.00021095,2]
[326563105,1715109087561,-500.0,0.00021095,2]
[326563106,1715109087571,-1409.45,0.00021095,2]
[326563107,1715109087581,-582.3420965,0.00021095,2]
[326563108,1715109087591,-500.0,0.00021095,2]
[326563109,1715109087601,-500.0,0.00021095,2]
[326563110,1715109087616,-500.0,0.00021095,2]
[326563111,1715109087625,-500.0,0.00021095,2]
[326563112,1715109087635,-1020.83,0.00021095,2]
[326563113,1715109087646,-500.0,0.00021095,2]
[326563114,1715109087657,-500.0,0.00021095,2]
[326563115,1715109087667,-500.0,0.00021095,2]
[326563116,1715109087677,-1414.86,0.00021095,2]
[326563117,1715109087689,-500.0,0.00021095,2]
[326563118,1715109087700,-500.0,0.00021095,2]
[326563119,1715109087710,-731.07,0.00021095,2]
[326563120,1715109087720,-500.0,0.00021095,2]
[326563121,1715109087729,-500.0,0.00021095,2]
[326563122,1715109087739,-711.26,0.00021095,2]
[326563123,1715109087749,-500.0,0.00021095,2]
[326563124,1715109087759,-1013.61,0.00021095,2]
[326563125,1715109087769,-500.0,0.00021095,2]
[326563126,1715109087778,-500.0,0.00021095,2]
[326563127,1715109087788,-500.0,0.00021095,2]
[326563128,1715109087800,-735.22,0.00021095,2]
[326563129,1715109087811,-500.0,0.00021095,2]
[326563130,1715109087821,-1169.14,0.00021095,2]
[326563131,1715109087831,-544.24,0.00021095,2]
[326563132,1715109087840,-1704.43,0.00021095,2]
[326563133,1715109087851,-500.0,0.00021095,2]
[326563134,1715109087860,-500.0,0.00021095,2]
[326563135,1715109087870,-538.08,0.00021095,2]
[326563136,1715109087880,-562.5362166,0.00021095,2]
[326563137,1715109087889,-557.71,0.00021095,2]
[326563138,1715109087899,-500.0,0.00021095,2]
[326563139,1715109087909,-850.54,0.00021095,2]
[326563140,1715109087918,-500.0,0.00021095,2]
[326563141,1715109087929,-949.21,0.00021095,2]
[326563142,1715109087939,-500.0,0.00021095,2]
[326563143,1715109087949,-718.44,0.00021095,2]
[326563144,1715109087960,-4821.02,0.00021095,2]
[326563145,1715109087970,-500.0,0.00021095,2]
[326563146,1715109087980,-500.0,0.00021095,2]
[326563147,1715109087991,-1209.89,0.00021095,2]
[326563148,1715109088000,-521.54,0.00021095,2]
[326563149,1715109088010,-500.0,0.00021095,2]
[326563150,1715109088019,-717.93,0.00021095,2]
[326563151,1715109088030,-500.0,0.00021095,2]
[326563152,1715109088040,-500.0,0.00021095,2]
[326563153,1715109088050,-500.0,0.00021095,2]
[326563154,1715109088060,-533.96,0.00021095,2]
[326563155,1715109088070,-928.47,0.00021095,2]
[326563156,1715109088080,-500.0,0.00021095,2]
[326563157,1715109088090,-857.36,0.00021095,2]
[326563158,1715109088099,-532.62,0.00021095,2]
[326563159,1715109088109,-2333.84,0.00021095,2]
[326563160,1715109088118,-678.25,0.00021095,2]
[326563161,1715109088128,-1851.61,0.00021095,2]
[326563162,1715109088138,-563.87,0.00021095,2]
[326563163,1715109088147,-500.0,0.00021095,2]
[326563164,1715109088157,-547.36,0.00021095,2]
[326563165,1715109088166,-500.0,0.00021095,2]
[326563166,1715109088176,-753.1,0.00021095,2]
[326563167,1715109088185,-500.0,0.00021095,2]
[326563168,1715109088195,-500.0,0.00021095,2]
[326563169,1715109088205,-1246.61,0.00021095,2]
[326563170,1715109088215,-1396.46,0.00021095,2]
[326563171,1715109088225,-523.32,0.00021095,2]
[326563172,1715109088234,-1051.16,0.00021095,2]
[326563173,1715109088244,-1222.09,0.00021095,2]
[326563174,1715109088253,-500.0,0.00021095,2]
[326563175,1715109088263,-1099.92,0.00021095,2]
[326563176,1715109088274,-500.0,0.00021095,2]
[326563177,1715109088283,-3883.49,0.00021095,2]
[326563178,1715109088292,-500.0,0.00021095,2]
[326563179,1715109088302,-500.0,0.00021095,2]
[326563180,1715109088311,-500.0,0.00021095,2]
[326563181,1715109088322,-500.0,0.00021095,2]
[326563182,1715109088332,-500.0,0.00021095,2]
[326563183,1715109088342,-182.41434726,0.00021095,2]
[326563184,1715109088351,-798.3,0.00021095,2]
[326563185,1715109088361,-500.0,0.00021095,2]
[326563186,1715109088371,-1024.08,0.00021095,2]
[326563187,1715109088381,-500.0,0.00021095,2]
[326563188,1715109088391,-500.0,0.00021095,2]
[326563189,1715109088401,-500.0,0.00021095,2]
[326563190,1715109088412,-3726.27,0.00021095,2]
[326563191,1715109088422,-572.78,0.00021095,2]
[326563192,1715109088432,-500.0,0.00021095,2]
[326563193,1715109088443,-500.0,0.00021095,2]
[326563194,1715109088453,-500.0,0.00021095,2]
[326563195,1715109088463,-500.0,0.00021095,2]
[326563196,1715109088473,-500.0,0.00021095,2]
[326563197,1715109088483,-500.0,0.00021095,2]
[326563198,1715109088493,-1075.66,0.00021095,2]
[326563199,1715109088504,-500.0,0.00021095,2]
[326563200,1715109088514,-1074.47,0.00021095,2]
[326563201,1715109088524,-614.33,0.00021095,2]
[326563202,1715109088534,-1390.99,0.00021095,2]
[326563203,1715109088544,-500.0,0.00021095,2]
[326563204,1715109088554,-1067.93,0.00021095,2]
[326563205,1715109088564,-500.0,0.00021095,2]
[326563206,1715109088573,-828.77,0.00021095,2]
[326563207,1715109088583,-931.21,0.00021095,2]
[326563208,1715109088594,-500.0,0.00021095,2]
[326563209,1715109088605,-500.0,0.00021095,2]
[326563210,1715109088616,-500.57,0.00021095,2]
[326563211,1715109088626,-500.0,0.00021095,2]
[326563212,1715109088636,-500.0,0.00021095,2]
[326563213,1715109088647,-500.0,0.00021095,2]
[326563214,1715109088658,-544.9,0.00021095,2]
[326563215,1715109088667,-500.0,0.00021095,2]
[326563216,1715109088677,-793.32,0.00021095,2]
[326563217,1715109088688,-500.0,0.00021095,2]
[326563218,1715109088698,-1001.63,0.00021095,2]
[326563219,1715109088708,-500.0,0.00021095,2]
[326563220,1715109088717,-659.12,0.00021095,2]
[326563221,1715109088727,-500.0,0.00021095,2]
[326563222,1715109088737,-500.0,0.00021095,2]
[326563223,1715109088747,-500.0,0.00021095,2]
[326563224,1715109088758,-876.42,0.00021095,2]
[326563225,1715109088768,-500.0,0.00021095,2]
[326563226,1715109088779,-500.0,0.00021095,2]
[326563227,1715109088789,-1592.65,0.00021095,2]
[326563228,1715109088801,-1382.91,0.00021095,2]
[326563229,1715109088812,-575.18,0.00021095,2]
[326563230,1715109088822,-676.71,0.00021095,2]
[326563231,1715109088832,-677.53,0.00021095,2]
[326563232,1715109088842,-892.36,0.00021095,2]
[326563233,1715109088852,-809.83,0.00021095,2]
[326563234,1715109088862,-798.52,0.00021095,2]
[326563235,1715109088872,-500.0,0.00021095,2]
[326563236,1715109088883,-540.05,0.00021095,2]
[326563237,1715109088893,-712.06,0.00021095,2]
[326563238,1715109088904,-2338.12,0.00021095,2]
[326563239,1715109088915,-500.0,0.00021095,2]
[326563240,1715109088925,-627.88,0.00021095,2]
[326563241,1715109088935,-582.92,0.00021095,2]
[326563242,1715109088945,-1209.49,0.00021095,2]
[326563243,1715109088955,-429.00651643,0.00021095,2]
[326563244,1715109088964,-500.0,0.00021095,2]
[326563245,1715109088974,-624.93,0.00021095,2]
[326563246,1715109088983,-500.0,0.00021095,2]
[326563247,1715109088994,-506.15,0.00021095,2]
[326563248,1715109089003,-1481.7,0.00021095,2]
[326563249,1715109089013,-500.0,0.00021095,2]
[326563250,1715109089024,-262.78886276,0.00021095,2]
[326563251,1715109089034,-500.0,0.00021095,2]
[326563252,1715109089044,-803.02,0.00021095,2]
[326563253,1715109089053,-1227.85,0.00021095,2]
[326563254,1715109089064,-541.87,0.00021095,2]
[326563255,1715109089073,-532.75,0.00021095,2]
[326563256,1715109089082,-1085.64,0.00021095,2]
[326563257,1715109089092,-563.22,0.00021095,2]
[326563258,1715109089102,-500.0,0.00021095,2]
[326563259,1715109089112,-1105.8,0.00021095,2]
[326563260,1715109089121,-500.0,0.00021095,2]
[326563261,1715109089132,-979.3,0.00021095,2]
[326563262,1715109089141,-5700.1,0.00021095,2]
[326563263,1715109089151,-500.0,0.00021095,2]
[326563264,1715109089162,-1106.3,0.00021095,2]
[326563265,1715109089172,-1297.44,0.00021095,2]
[326563266,1715109089181,-500.0,0.00021095,2]
[326563267,1715109089191,-1432.86,0.00021095,2]
[326563268,1715109089201,-500.0,0.00021095,2]
[326563269,1715109089212,-500.0,0.00021095,2]
[326563270,1715109089222,-1779.56,0.00021095,2]
[326563271,1715109089232,-748.56,0.00021095,2]
[326563272,1715109089242,-4338.05,0.00021095,2]
[326563273,1715109089251,-2714.86,0.00021095,2]
[326563274,1715109089261,-500.0,0.00021095,2]
[326563275,1715109089272,-500.0,0.00021095,2]
[326563276,1715109089281,-501.29,0.00021095,2]
[326563277,1715109089291,-2987.38,0.00021095,2]
[326563278,1715109089301,-1056.34,0.00021095,2]
[326563279,1715109089310,-1534.13,0.00021095,2]
[326563280,1715109089320,-896.06,0.00021095,2]
[326563281,1715109089330,-1535.14,0.00021095,2]
[326563282,1715109089339,-500.0,0.00021095,2]
[326563283,1715109089349,-500.0,0.00021095,2]
[326563284,1715109089360,-500.0,0.00021095,2]
[326563285,1715109089370,-1016.39,0.00021095,2]
[326563286,1715109089380,-500.0,0.00021095,2]
[326563287,1715109089390,-839.24,0.00021095,2]
[326563288,1715109089400,-3365.77,0.00021095,2]
[326563289,1715109089409,-17937.6,0.00021095,2]
[326563290,1715109089419,-637.19809634,0.00021095,2]
[326563291,1715109089428,-1219.46,0.00021095,2]
[326563292,1715109089438,-500.0,0.00021095,2]
[326563293,1715109089448,-500.0,0.00021095,2]
[326563294,1715109089458,-500.0,0.00021095,2]
[326563295,1715109089467,-1074.92,0.00021095,2]
[326563296,1715109089478,-767.65,0.00021095,2]
[326563297,1715109089487,-500.0,0.00021095,2]
[326563298,1715109089497,-500.0,0.00021095,2]
[326563299,1715109089506,-3466.46,0.00021095,2]
[326563300,1715109089515,-1717.75,0.00021095,2]
[326563301,1715109089526,-500.0,0.00021095,2]
[326563302,1715109089536,-500.0,0.00021095,2]
[326563303,1715109089545,-500.0,0.00021095,2]
[326563304,1715109089556,-1168.98,0.00021095,2]
[326563305,1715109089565,-946.47,0.00021095,2]
[326563306,1715109089575,-3939.72,0.00021095,2]
[326563307,1715109089584,-622.4,0.00021095,2]
[326563308,1715109089594,-9068.98,0.00021095,2]
[326563309,1715109089777,-2099.47,0.00021095,2]
[326563310,1715109089788,-660.56,0.00021095,2]
[326563311,1715109089798,-975.09,0.00021095,2]
[326563312,1715109089807,-7823.11,0.00021095,2]
[326563313,1715109089817,-3638.35,0.00021095,2]
[326563314,1715109089827,-2517.85,0.00021095,2]
[326563315,1715109089837,-3443.28,0.00021095,2]
[326563316,1715109089846,-500.0,0.00021095,2]
[326563317,1715109089855,-500.0,0.00021095,2]
[326563318,1715109089865,-626.56,0.00021095,2]
[326563319,1715109089874,-500.0,0.00021095,2]
[326563320,1715109089884,-500.0,0.00021095,2]